bitfinex-derivatives/quotes_SOLF0:USTF0_20240912
["timestamp","ask_amount","ask_price","bid_price","bid_amount"]
[1726170723690,14.6363,135.69,135.66,3.3169]
[1726170724275,14.6363,135.69,135.65,14.6371]
[1726170724577,3.3164,135.68,135.65,14.6371]
[1726170725080,14.6363,135.69,135.65,14.6371]
[1726170725383,14.6363,135.69,135.66,3.3169]
[1726170725682,14.6363,135.69,135.65,11.32]
[1726170726068,14.6363,135.69,135.65,14.637]
[1726170726269,3.3165,135.68,135.65,3.317]
[1726170726584,3.3165,135.68,135.61,2.8232]
[1726170726585,11.32,135.67,135.63,11.32]
[1726170726883,11.32,135.68,135.63,11.32]
[1726170727283,11.32,135.68,135.64,11.32]
[1726170727782,14.6365,135.68,135.65,3.3171]
[1726170730379,14.6365,135.68,135.64,11.32]
[1726170730380,11.32,135.67,135.63,11.32]
[1726170730686,11.32,135.68,135.64,11.32]
[1726170730986,3.3168,135.67,135.65,3.3171]
[1726170731607,14.6365,135.68,135.65,3.3171]
[1726170733194,14.6363,135.69,135.66,3.3169]
[1726170733484,3.61440896,135.72,135.66,11.32]
[1726170733485,11.32,135.72,135.66,11.32]
[1726170733680,11.32,135.72,135.67,3.3165]
[1726170733885,11.32,135.7,135.66,11.32]
[1726170734078,11.32,135.7,135.65,14.94942477]
[1726170734280,3.3163,135.69,135.66,3.3167]
[1726170734479,11.32,135.69,135.65,11.32]
[1726170734985,3.3166,135.68,135.65,18.4058053]
[1726170735287,11.32,135.68,135.61,10.2062]
[1726170735588,11.32,135.65,135.61,14.1432]
[1726170735787,11.32,135.65,135.61,2.8232]
[1726170735983,11.32,135.64,135.61,2.8232]
[1726170736187,17.7,135.65,135.61,2.8232]
[1726170736385,17.7,135.65,135.59,1.4259]
[1726170736788,3.3178,135.63,135.59,4.7443]
[1726170737382,3.3179,135.62,135.59,1.4259]
[1726170738084,3.3177,135.63,135.59,1.4259]
[1726170738690,3.318,135.62,135.59,4.7444]
[1726170739193,3.3183,135.61,135.59,1.4259]
[1726170739399,17.7,135.65,135.59,1.4259]
[1726170739992,17.7,135.65,135.59,4.7444]
[1726170740196,17.7,135.67,135.59,1.4259]
[1726170740405,3.72970961,135.68,135.59,19.1259]
[1726170740608,6.6304,135.74,135.63,3.3176]
[1726170740808,17.7,135.7,135.63,3.3176]
[1726170741005,3.3169,135.66,135.63,3.3176]
[1726170741311,21.46880278,135.7,135.63,3.3176]
[1726170741608,3.3167,135.67,135.63,3.3176]
[1726170741996,3.3167,135.67,135.64,3.3174]
[1726170743111,3.3165,135.68,135.64,3.3174]
[1726170743300,3.3165,135.68,135.65,3.317]
[1726170744006,17.7,135.7,135.65,3.317]
[1726170745210,17.7,135.72,135.64,3.75561584]
[1726170745398,17.7,135.72,135.63,17.7]
[1726170745602,17.7,135.72,135.64,1.3586]
[1726170745807,17.7,135.72,135.67,3.3165]
[1726170746503,3.3159,135.71,135.67,3.3165]
[1726170748508,3.3163,135.69,135.66,3.3168]
[1726170749814,17.7,135.7,135.64,5.04638102]
[1726170750004,3.7515605,135.73,135.64,1.3586]
[1726170750210,17.7,135.68,135.62,2.6692]
[1726170750410,3.3171,135.66,135.63,3.3175]
[1726170751717,3.3171,135.66,135.64,3.3174]
[1726170752815,3.3168,135.67,135.64,3.3174]
[1726170754515,3.317,135.66,135.63,3.3175]
[1726170755320,3.317,135.66,135.62,2.6692]
[1726170755321,3.3172,135.65,135.62,5.987]
[1726170755523,17.7,135.66,135.62,2.6692]
[1726170756121,17.7,135.66,135.6,1.3516]
[1726170756417,3.67829309,135.68,135.57,3.62865745]
[1726170756418,17.7,135.64,135.58,2.7383]
[1726170756725,3.318,135.62,135.58,2.7383]
[1726170757213,3.63331897,135.67,135.58,2.7383]
[1726170757419,17.7,135.66,135.58,2.7383]
[1726170758216,3.3174,135.64,135.61,3.318]
[1726170760124,14.6474,135.64,135.61,3.318]
[1726170760819,11.33,135.62,135.48,3.65717152]
[1726170761028,3.62553473,135.68,135.56,10.91669221]
[1726170761029,11.33,135.59,135.56,10.91669221]
[1726170761318,11.33,135.58,135.53,6.0402]
[1726170761515,6.6334,135.67,135.55,11.33]
[1726170761720,11.33,135.61,135.55,11.33]
[1726170762117,3.3185,135.6,135.57,3.319]
[1726170763120,11.33,135.61,135.58,3.3188]
[1726170763121,14.6482,135.61,135.58,3.3188]
[1726170763320,11.33,135.61,135.56,11.33]
[1726170763522,11.33,135.62,135.56,11.33]
[1726170764127,3.3182,135.61,135.58,3.3187]
[1726170765826,3.3184,135.6,135.57,3.319]
[1726170768027,3.3184,135.6,135.55,3.6771658]
[1726170768028,3.3189,135.58,135.53,20.4202]
[1726170768223,3.3189,135.58,135.53,2.7202]
[1726170768430,3.3186,135.59,135.56,3.3192]
[1726170769019,3.3185,135.6,135.57,3.319]
[1726170769921,3.3185,135.6,135.53,20.4202]
[1726170769922,17.7,135.63,135.53,2.7202]
[1726170771038,3.3187,135.59,135.56,3.3193]
[1726170772925,3.3184,135.6,135.57,3.319]
[1726170774334,3.3188,135.59,135.54,17.7]
[1726170774531,17.7,135.63,135.53,2.7202]
[1726170774919,3.319,135.58,135.55,3.3194]
[1726170776133,3.3187,135.59,135.56,3.3193]
[1726170776332,17.7,135.63,135.56,3.3193]
[1726170777224,3.319,135.58,135.55,3.3195]
[1726170777531,17.7,135.61,135.53,2.7202]
[1726170777734,17.7,135.61,135.54,3.3196]
[1726170778533,3.3191,135.58,135.54,3.3196]
[1726170779034,3.3192,135.57,135.54,3.3196]
[1726170780248,17.7,135.61,135.55,3.3196]
[1726170780424,3.3189,135.58,135.55,3.3196]
[1726170781929,3.3187,135.59,135.54,17.7]
[1726170782638,3.3187,135.59,135.56,3.3193]
[1726170783529,3.3185,135.6,135.57,3.319]
[1726170784435,3.3185,135.6,135.58,3.3188]
[1726170784945,17.7,135.65,135.56,17.7]
[1726170784946,17.7,135.65,135.59,3.3186]
[1726170785338,3.318,135.62,135.59,3.3186]
[1726170785536,17.7,135.65,135.59,3.3186]
[1726170785939,3.3178,135.63,135.6,3.3184]
[1726170786239,3.3178,135.63,135.6,14.6484]
[1726170786641,6.6315,135.71,135.61,11.33]
[1726170786840,11.33,135.67,135.62,11.33]
[1726170787149,3.61822906,135.71,135.64,11.33]
[1726170787346,3.3168,135.67,135.64,11.33]
[1726170788247,3.3168,135.67,135.64,14.6473]
[1726170788753,3.3168,135.67,135.65,11.33]
[1726170790547,3.3168,135.67,135.64,14.6474]
[1726170793351,14.6465,135.68,135.65,3.3171]
[1726170799145,14.6467,135.67,135.65,3.3171]
[1726170799857,11.33,135.67,135.65,3.3171]
[1726170800455,11.33,135.67,135.64,3.3173]
[1726170800653,3.6039823,135.71,135.64,3.3173]
[1726170800853,14.6468,135.67,135.64,3.3173]
[1726170804162,11.33,135.66,135.63,3.3175]
[1726170804356,11.33,135.66,135.61,1.318]
[1726170804561,14.6471,135.66,135.63,3.3175]
[1726170806760,14.6471,135.66,135.64,3.3173]
[1726170807656,3.3173,135.65,135.62,22.0238]
[1726170807865,3.3173,135.65,135.62,3.3178]
[1726170808161,3.3173,135.65,135.63,3.3176]
[1726170809556,3.3173,135.65,135.62,3.3178]
[1726170811264,11.33,135.66,135.63,3.3175]
[1726170812061,3.3172,135.65,135.62,3.3178]
[1726170814458,14.6474,135.64,135.62,3.3178]
[1726170814658,14.6474,135.64,135.61,3.318]
[1726170816065,3.77073121,135.69,135.6,3.3182]
[1726170816066,14.6477,135.63,135.6,3.3182]
[1726170816270,11.33,135.63,135.59,14.0122]
[1726170816459,11.33,135.63,135.59,2.6822]
[1726170817458,14.6478,135.63,135.6,3.3182]
[1726170817957,11.33,135.63,135.61,3.3181]
[1726170820972,14.6476,135.63,135.61,3.3181]
[1726170821267,14.6476,135.63,135.6,3.3183]
[1726170821661,14.6476,135.63,135.61,3.3181]
[1726170821965,3.3179,135.62,135.59,2.6822]
[1726170822172,14.6479,135.62,135.59,3.3185]
[1726170822363,14.6479,135.62,135.58,11.33]
[1726170822569,11.33,135.62,135.58,11.33]
[1726170823069,11.33,135.62,135.6,3.3183]
[1726170824375,3.3181,135.61,135.58,3.3188]
[1726170824576,11.33,135.62,135.57,11.33]
[1726170824974,14.648,135.62,135.59,3.3184]
[1726170825383,14.648,135.62,135.57,11.33]
[1726170826181,3.3182,135.61,135.58,3.3187]
[1726170827880,3.3182,135.61,135.59,3.3186]
[1726170828080,14.648,135.62,135.59,3.3186]
[1726170831984,3.3182,135.61,135.58,3.3187]
[1726170832192,155.44717614,135.68,135.6,11.33]
[1726170832381,155.44717614,135.68,135.61,11.33]
[1726170832382,11.33,135.66,135.61,11.33]
[1726170832585,14.6471,135.66,135.63,3.3176]
[1726170833676,14.6467,135.67,135.64,3.3172]
[1726170833986,155.44717614,135.68,135.56,1.3952]
[1726170833987,11.33,135.66,135.61,11.33]
[1726170834289,14.647,135.66,135.63,3.3175]
[1726170835785,159.06771992,135.68,135.62,3.3177]
[1726170835786,14.6472,135.65,135.62,3.3177]
[1726170837286,14.6472,135.65,135.63,3.3176]
[1726170837879,11.33,135.65,135.6,11.33]
[1726170838282,14.647,135.66,135.63,3.3175]
[1726170840304,11.33,135.64,135.62,3.3177]
[1726170840492,11.33,135.64,135.56,1.3952]
[1726170840493,11.33,135.62,135.57,6.00050684]
[1726170840688,159.06771992,135.68,135.59,11.33]
[1726170840887,11.33,135.65,135.62,3.3177]
[1726170841391,3.3175,135.64,135.61,3.3181]
[1726170843698,11.33,135.66,135.62,11.33]
[1726170844395,3.3172,135.65,135.62,14.6477]
[1726170844594,14.6472,135.65,135.62,3.3177]
[1726170845597,11.33,135.64,135.62,3.3177]
[1726170845789,14.6474,135.64,135.61,3.3181]
[1726170846187,11.33,135.65,135.61,11.33]
[1726170846588,14.6473,135.65,135.62,3.3177]
[1726170850302,11.33,135.65,135.61,11.33]
[1726170850997,14.647,135.66,135.63,3.3175]
[1726170853108,14.647,135.66,135.64,3.3174]
[1726170854100,11.33,135.66,135.65,3.3171]
[1726170854406,11.33,135.67,135.65,3.3171]
[1726170856110,6.6281,135.78,135.66,11.33]
[1726170856306,11.33,135.7,135.66,11.33]
[1726170856507,3.3156,135.72,135.69,3.3162]
[1726170857101,3.3158,135.71,135.66,11.33]
[1726170857408,11.33,135.7,135.66,11.33]
[1726170858107,3.3158,135.71,135.67,11.33]
[1726170858108,14.6458,135.71,135.67,11.33]
[1726170858302,14.6458,135.71,135.68,3.3163]
[1726170859512,14.646,135.7,135.67,3.3165]
[1726170860309,3.3164,135.69,135.66,3.3169]
[1726170861708,3.3164,135.69,135.62,5.05855131]
[1726170861709,3.3166,135.68,135.62,5.05855131]
[1726170862006,11.33,135.67,135.62,12.6357]
[1726170862598,11.33,135.67,135.65,3.3169]
[1726170863012,11.33,135.67,135.62,1.3057]
[1726170863207,3.69571628,135.7,135.62,1.3057]
[1726170863208,11.33,135.66,135.62,1.3057]
[1726170863806,11.33,135.66,135.63,3.3176]
[1726170864409,3.3167,135.67,135.62,1.3057]
[1726170864410,14.6467,135.67,135.64,3.3173]
[1726170865914,14.6465,135.68,135.62,4.95245516]
[1726170866106,11.33,135.69,135.65,11.33]
[1726170866807,14.6463,135.69,135.66,3.3167]
[1726170867009,11.33,135.72,135.67,11.33]
[1726170867210,11.33,135.7,135.67,11.33]
[1726170867406,11.33,135.7,135.68,3.3163]
[1726170870519,14.646,135.7,135.67,3.3166]
[1726170870711,11.33,135.68,135.62,4.95245516]
[1726170870908,11.33,135.65,135.62,1.3057]
[1726170871322,11.33,135.66,135.62,12.6357]
[1726170872519,11.33,135.66,135.64,3.3173]
[1726170872820,11.33,135.66,135.62,12.6357]
[1726170873014,11.33,135.69,135.64,11.33]
[1726170873228,11.33,135.7,135.66,11.33]
[1726170873625,11.33,135.7,135.67,3.3164]
[1726170874620,14.646,135.7,135.67,3.3164]
[1726170876312,11.33,135.68,135.63,11.33]
[1726170876924,11.33,135.68,135.66,3.3169]
[1726170879518,3.3163,135.69,135.66,3.3169]
[1726170879519,11.33,135.69,135.66,3.3169]
[1726170879723,11.33,135.7,135.67,11.33]
[1726170879926,11.33,135.71,135.67,11.33]
[1726170880330,11.33,135.71,135.64,2.8182]
[1726170880331,11.33,135.7,135.64,2.8182]
[1726170880516,11.33,135.69,135.64,2.8182]
[1726170880712,11.33,135.68,135.65,3.3171]
[1726170881426,11.33,135.69,135.66,3.3168]
[1726170881624,11.33,135.7,135.66,11.33]
[1726170881929,11.33,135.71,135.66,11.33]
[1726170882321,11.33,135.7,135.67,3.3166]
[1726170882627,11.33,135.7,135.65,11.33]
[1726170884615,11.33,135.7,135.67,3.3165]
[1726170887729,11.33,135.7,135.68,3.3164]
[1726170887914,177.57717614,135.82,135.68,11.33]
[1726170888120,11.33,135.73,135.68,11.33]
[1726170888418,14.6453,135.73,135.7,3.3158]
[1726170889018,11.33,135.71,135.66,11.33]
[1726170889225,11.33,135.71,135.65,11.33]
[1726170889422,11.33,135.69,135.64,2.8182]
[1726170889626,11.33,135.67,135.64,2.8182]
[1726170890429,11.33,135.67,135.62,1.3057]
[1726170890430,11.33,135.65,135.6,4.95008974]
[1726170890630,11.33,135.63,135.62,3.3177]
[1726170892017,11.33,135.63,135.59,2.5921]
[1726170892229,17.71,135.63,135.59,2.5921]
[1726170892622,17.71,135.63,135.59,5.9107]
[1726170893334,17.71,135.63,135.6,3.3183]
[1726170893335,21.0277,135.63,135.6,3.3183]
[1726170893724,21.0277,135.63,135.59,5.9106]
[1726170894034,17.71,135.63,135.59,2.5921]
[1726170894418,17.71,135.63,135.56,1.4091]
[1726170894618,17.71,135.61,135.56,1.4091]
[1726170895837,17.71,135.61,135.58,3.3188]
[1726170896027,17.71,135.61,135.56,1.4091]
[1726170897235,21.0282,135.61,135.57,3.3189]
[1726170898432,3.63640233,135.65,135.56,1.4091]
[1726170898433,21.0278,135.63,135.58,3.3186]
[1726170899027,21.0278,135.63,135.56,1.4091]
[1726170899429,21.0278,135.63,135.57,1.3926]
[1726170899746,21.0278,135.63,135.59,3.3184]
[1726170900428,3.61083192,135.72,135.61,17.71]
[1726170900723,17.71,135.74,135.62,5.04583426]
[1726170900927,17.71,135.71,135.63,19.1026]
[1726170901235,17.71,135.71,135.63,22.78943157]
[1726170901534,17.71,135.71,135.67,3.3166]
[1726170902337,17.71,135.71,135.63,22.78943157]
[1726170902527,17.71,135.7,135.63,1.3926]
[1726170903234,17.71,135.68,135.63,4.7102]
[1726170903434,17.71,135.66,135.62,1.4324]
[1726170903934,17.71,135.66,135.61,3.3179]
[1726170904439,17.71,135.66,135.58,17.71]
[1726170904627,17.71,135.66,135.62,3.3176]
[1726170905535,17.71,135.66,135.63,3.3175]
[1726170905730,21.0265,135.68,135.63,3.3175]
[1726170906036,17.71,135.72,135.68,3.3164]
[1726170906338,21.0254,135.72,135.65,17.71]
[1726170906541,17.71,135.72,135.68,3.3164]
[1726170906927,17.71,135.72,135.65,17.71]
[1726170907137,17.71,135.72,135.67,3.3165]
[1726170907331,17.71,135.72,135.65,17.71]
[1726170907538,21.0253,135.73,135.65,17.71]
[1726170907937,21.0253,135.73,135.68,3.3162]
[1726170908140,17.71,135.73,135.65,17.71]
[1726170909039,17.71,135.71,135.64,4.1489]
[1726170909436,17.71,135.71,135.66,3.3169]
[1726170909938,17.71,135.71,135.64,4.1489]
[1726170910533,21.0252,135.73,135.68,3.3162]
[1726170910728,17.71,135.73,135.64,21.8589]
[1726170911132,17.71,135.73,135.68,3.3162]
[1726170911332,21.0254,135.73,135.64,21.8589]
[1726170911738,21.0254,135.73,135.68,3.3164]
[1726170912136,3.3155,135.72,135.68,3.3164]
[1726170913543,17.71,135.73,135.67,3.3166]
[1726170914040,17.71,135.7,135.64,4.1489]
[1726170914245,17.71,135.68,135.64,2.7687]
[1726170914448,17.71,135.69,135.64,2.7687]
[1726170914648,17.71,135.69,135.66,3.3169]
[1726170915037,17.71,135.69,135.64,2.7687]
[1726170915240,17.71,135.69,135.66,3.3169]
[1726170915943,17.71,135.69,135.65,3.3171]
[1726170916642,17.71,135.69,135.66,3.3169]
[1726170917359,17.71,135.69,135.67,3.3166]
[1726170918042,21.0262,135.69,135.65,3.317]
[1726170918449,17.71,135.69,135.64,2.7687]
[1726170919440,17.71,135.69,135.66,3.3168]
[1726170921054,17.71,135.68,135.65,3.317]
[1726170921352,3.3167,135.67,135.63,3.3175]
[1726170921544,3.3167,135.67,135.62,1.3913]
[1726170921852,17.71,135.68,135.62,1.3913]
[1726170922034,21.0265,135.68,135.64,3.3172]
[1726170922236,17.71,135.68,135.62,1.3913]
[1726170922642,21.0264,135.68,135.62,1.3913]
[1726170923446,21.0264,135.68,135.64,3.3172]
[1726170924049,3.3167,135.67,135.64,3.3172]
[1726170924242,17.71,135.68,135.64,3.3172]
[1726170924544,21.027,135.66,135.6,2.7606]
[1726170924749,17.71,135.66,135.6,2.7606]
[1726170925143,21.0274,135.64,135.6,2.7606]
[1726170925344,17.71,135.64,135.6,2.7606]
[1726170925643,17.71,135.64,135.61,3.318]
[1726170925849,3.3173,135.65,135.61,3.318]
[1726170926353,21.027,135.66,135.62,3.3179]
[1726170926543,17.71,135.66,135.62,3.3179]
[1726170926851,3.3173,135.65,135.61,3.3181]
[1726170927156,17.71,135.66,135.6,2.7606]
[1726170927359,17.71,135.66,135.58,1.3605]
[1726170927544,17.71,135.63,135.58,1.3605]
[1726170927746,17.71,135.63,135.56,20.4627]
[1726170927953,21.0277,135.63,135.57,10.95335446]
[1726170928149,21.0277,135.63,135.56,2.7527]
[1726170928348,17.71,135.63,135.57,10.95307708]
[1726170928550,17.71,135.66,135.61,3.3181]
[1726170929153,3.3173,135.65,135.62,3.3178]
[1726170929860,3.3173,135.65,135.61,3.318]
[1726170930450,3.3173,135.65,135.57,4.95459455]
[1726170930451,17.71,135.66,135.58,10.95299805]
[1726170930660,17.71,135.66,135.59,5.99787804]
[1726170930959,17.71,135.66,135.56,20.4627]
[1726170930960,3.3173,135.65,135.56,20.4627]
[1726170931154,3.3173,135.65,135.61,3.318]
[1726170933256,3.3174,135.64,135.61,3.318]
[1726170933456,17.71,135.66,135.62,3.3178]
[1726170933645,17.71,135.66,135.58,17.71]
[1726170933849,3.3167,135.67,135.59,7.42096773]
[1726170934051,3.3167,135.67,135.59,1.4223]
[1726170934354,3.3169,135.66,135.62,3.3178]
[1726170934652,17.71,135.68,135.59,1.4223]
[1726170935060,3.3167,135.67,135.63,3.3175]
[1726170935950,21.0265,135.68,135.6,10.94995337]
[1726170936151,17.71,135.68,135.61,8.76424343]
[1726170936349,17.71,135.68,135.61,2.7679]
[1726170936747,17.71,135.68,135.65,3.317]
[1726170937361,21.0264,135.68,135.65,3.317]
[1726170937952,3.3167,135.67,135.64,3.3173]
[1726170938162,3.3167,135.67,135.61,2.7679]
[1726170938553,3.317,135.66,135.61,2.7679]
[1726170938863,17.71,135.64,135.59,1.4223]
[1726170939163,17.71,135.64,135.61,3.3179]
[1726170939560,17.71,135.62,135.57,2.744]
[1726170939758,3.61673016,135.66,135.51,19.085]
[1726170939759,21.0283,135.61,135.51,19.085]
[1726170939952,21.0283,135.61,135.52,10.96206894]
[1726170939953,17.71,135.61,135.52,10.96206894]
[1726170940153,17.71,135.61,135.56,3.3192]
[1726170940663,21.0282,135.61,135.52,4.95909834]
[1726170940963,21.0282,135.61,135.53,10.96370608]
[1726170941264,21.0282,135.61,135.56,3.3191]
[1726170941465,21.0282,135.61,135.51,29.205]
[1726170941654,21.0282,135.61,135.52,10.9655811]
[1726170941978,21.0282,135.61,135.53,4.9606653]
[1726170942154,21.0282,135.61,135.51,21.829]
[1726170942362,21.0282,135.61,135.52,6.00483848]
[1726170942569,21.0282,135.61,135.53,6.00483848]
[1726170942755,21.0282,135.61,135.54,6.00483848]
[1726170942956,21.0282,135.61,135.55,6.00483848]
[1726170943156,21.0282,135.61,135.57,3.3189]
[1726170944061,17.71,135.62,135.55,4.96060142]
[1726170944261,17.71,135.64,135.56,10.9699073]
[1726170944459,17.71,135.64,135.56,1.3692]
[1726170944660,17.71,135.68,135.59,17.71]
[1726170945450,17.71,135.66,135.57,20.5005]
[1726170945763,17.71,135.66,135.58,6.00389396]
[1726170945962,3.3172,135.65,135.61,3.318]
[1726170946565,21.027,135.66,135.62,3.3178]
[1726170949366,17.71,135.66,135.63,3.3176]
[1726170949865,3.3167,135.67,135.63,3.3176]
[1726170950065,17.71,135.69,135.6,17.71]
[1726170950667,21.0264,135.69,135.6,17.71]
[1726170951458,21.0264,135.69,135.64,3.3172]
[1726170951755,21.0264,135.69,135.6,17.71]
[1726170952062,21.0264,135.69,135.62,1.3533]
[1726170952253,17.71,135.69,135.66,3.3169]
[1726170952457,17.71,135.69,135.62,1.3533]
[1726170952963,17.71,135.67,135.62,1.3533]
[1726170953358,17.71,135.69,135.62,1.3533]
[1726170953871,21.0263,135.69,135.65,3.317]
[1726170954462,3.3164,135.68,135.65,3.317]
[1726170954663,3.3164,135.68,135.64,3.3173]
[1726170956266,3.3164,135.68,135.65,3.3171]
[1726170956571,21.0263,135.69,135.65,3.3171]
[1726170956760,17.71,135.69,135.65,3.3171]
[1726170957866,21.0263,135.69,135.65,3.3171]
[1726170958970,3.3165,135.68,135.62,1.3533]
[1726170959269,17.71,135.69,135.62,1.3533]
[1726170959781,21.0263,135.69,135.65,3.317]
[1726170960376,3.3165,135.68,135.65,3.317]
[1726170960971,21.0263,135.69,135.65,3.317]
[1726170961475,21.0263,135.69,135.62,1.3533]
[1726170961476,17.71,135.72,135.64,21.3444249]
[1726170961775,17.71,135.7,135.63,2.6015]
[1726170962780,17.71,135.68,135.63,1.3016]
[1726170963171,3.3163,135.69,135.63,1.3016]
[1726170963481,17.71,135.7,135.63,1.3016]
[1726170963675,21.0262,135.7,135.65,3.317]
[1726170964274,17.71,135.7,135.65,3.317]
[1726170964474,21.46018433,135.7,135.65,3.317]
[1726170964674,17.71,135.7,135.65,3.317]
[1726170964982,21.0264,135.68,135.64,3.3174]
[1726170965174,21.0264,135.68,135.62,1.3533]
[1726170965376,17.71,135.68,135.65,3.3171]
[1726170965778,3.3163,135.69,135.65,3.3171]
[1726170968085,3.3163,135.69,135.66,3.3169]
[1726170968782,17.71,135.7,135.62,19.0633]
[1726170968783,21.026,135.7,135.62,19.0633]
[1726170968983,3.316,135.7,135.67,3.3166]
[1726170971984,3.3162,135.69,135.66,3.3168]
[1726170972182,17.71,135.7,135.62,19.0633]
[1726170973185,17.71,135.7,135.68,3.3164]
[1726170973487,17.71,135.71,135.68,3.3164]
[1726170974790,21.0253,135.73,135.65,17.71]
[1726170976084,173.08526363,135.75,135.67,17.71]
[1726170976782,176.40006363,135.75,135.71,3.3155]
[1726170977789,3.315,135.74,135.71,3.3155]
[1726170977993,17.71,135.74,135.7,3.3158]
[1726170978690,3.3153,135.73,135.69,3.3161]
[1726170979090,17.71,135.74,135.68,1.3223]
[1726170979396,21.0256,135.72,135.68,3.3162]
[1726170979578,17.71,135.7,135.64,2.6259]
[1726170979787,21.0261,135.7,135.66,3.3167]
[1726170979980,17.71,135.7,135.64,2.6259]
[1726170981083,17.71,135.67,135.59,1.3439]
[1726170981294,17.71,135.67,135.6,1.3854]
[1726170981878,17.71,135.65,135.6,1.3854]
[1726170982085,17.71,135.63,135.59,1.3439]
[1726170982277,17.71,135.65,135.59,1.3439]
[1726170983490,17.71,135.67,135.59,1.3439]
[1726170983881,3.3169,135.66,135.62,3.3177]
[1726170984585,3.3169,135.66,135.61,3.318]
[1726170985696,3.3172,135.65,135.61,3.318]
[1726170986084,17.71,135.65,135.6,3.3183]
[1726170986886,3.3175,135.64,135.6,3.3183]
[1726170987286,21.0273,135.65,135.61,3.3181]
[1726170987487,17.71,135.65,135.59,1.3439]
[1726170987687,17.71,135.67,135.59,1.3439]
[1726170988381,17.71,135.67,135.6,10.95991552]
[1726170988591,3.317,135.66,135.62,3.3178]
[1726170988984,17.71,135.67,135.59,1.3439]
[1726170989189,21.0273,135.65,135.61,3.318]
[1726170989905,21.0273,135.65,135.62,3.3179]
[1726170990586,21.0273,135.65,135.61,3.318]
[1726170991799,17.71,135.65,135.6,3.3183]
[1726170991987,17.71,135.65,135.59,1.3439]
[1726170992994,17.71,135.65,135.61,3.3181]
[1726170993300,21.0273,135.65,135.61,3.3181]
[1726170993890,3.3174,135.64,135.6,3.3183]
[1726170994292,17.71,135.65,135.6,3.3183]
[1726170994494,17.71,135.63,135.56,4.98685344]
[1726170994695,17.71,135.63,135.57,10.96480516]
[1726170994891,17.71,135.63,135.56,1.3854]
[1726170995090,21.0277,135.63,135.57,10.96497558]
[1726170995290,21.0277,135.63,135.58,6.00458455]
[1726170995493,21.0277,135.63,135.56,1.3854]
[1726170995693,21.0277,135.63,135.59,3.3185]
[1726170996199,21.0277,135.63,135.56,1.3854]
[1726170996383,21.0277,135.63,135.57,6.0030612]
[1726170996585,21.0277,135.63,135.58,10.96205407]
[1726170996786,21.0277,135.63,135.56,5.06836868]
[1726170996983,21.0277,135.63,135.59,3.3185]
[1726170998103,3.3179,135.62,135.59,3.3185]
[1726170998801,21.0277,135.63,135.59,3.3185]
[1726171000198,21.0277,135.63,135.6,3.3183]
[1726171000399,21.0277,135.63,135.56,1.3854]
[1726171000602,21.0277,135.63,135.57,10.95584189]